fUST/lending_fUST_20240819
["ID","MTS","AMOUNT","RATE_DAILY","PERIOD"]
[335244049,1724027439416,-151.0,0.00015,2]
[335244050,1724027439426,-1110.8112074,0.00015067,2]
[335244051,1724027439435,-150.112233,0.000151,2]
[335244052,1724027439445,-150.112233,0.000152,2]
[335244053,1724027439456,-160.0,0.00015253,3]
[335244054,1724027439465,-150.112233,0.000154,2]
[335244055,1724027439475,-500.0,0.00015449,2]
[335244056,1724027439484,-153.0,0.00015479,2]
[335244057,1724027439494,-2997.82854153,0.00015497,2]
[335244058,1724027439504,-150.112233,0.000155,2]
[335244059,1724027439513,-88888.0,0.00015561,2]
[335244060,1724027439522,-3400.62334677,0.0001565,2]
[335244061,1724027439533,-379.085514,0.00015661,2]
[335244062,1724027439543,-918.441793,0.00015661,2]
[335244063,1724027439552,-379.085514,0.00015661,2]
[335244064,1724027439562,-918.441793,0.00015661,2]
[335244065,1724027439571,-151.0,0.00015661,2]
[335244066,1724027439581,-198.388061,0.00015661,2]
[335244067,1724027439590,-151.0,0.00015661,2]
[335244068,1724027439600,-198.388061,0.00015661,2]
[335244069,1724027439610,-401.600999,0.00015661,2]
[335244070,1724027439619,-401.600999,0.00015661,2]
[335244071,1724027439629,-151.0,0.00015661,2]
[335244072,1724027439639,-527.922159,0.00015661,2]
[335244073,1724027439649,-527.922159,0.00015661,2]
[335244074,1724027439659,-151.0,0.00015661,2]
[335244075,1724027439668,-197.161065,0.00015661,2]
[335244076,1724027439677,-151.0,0.00015661,2]
[335244077,1724027439686,-197.161065,0.00015661,2]
[335244078,1724027439696,-582.77032,0.00015661,2]
[335244079,1724027439706,-1020.080673,0.00015661,2]
[335244081,1724027439715,-1020.080673,0.00015661,2]
[335244082,1724027439725,-151.0,0.00015661,2]
[335244083,1724027439736,-151.0,0.00015661,2]
[335244084,1724027439746,-151.0,0.00015661,2]
[335244085,1724027439756,-464.391783,0.00015661,2]
[335244086,1724027439765,-464.391783,0.00015661,2]
[335244087,1724027439775,-151.0,0.00015661,2]
[335244088,1724027439786,-151.0,0.00015661,2]
[335244089,1724027439795,-151.0,0.00015661,2]
[335244090,1724027439805,-151.0,0.00015661,2]
[335244091,1724027439816,-151.0,0.00015661,2]
[335244092,1724027439826,-416.313771,0.00015661,2]
[335244093,1724027439836,-416.313771,0.00015661,2]
[335244094,1724027439845,-379.085514,0.0001567,2]
[335244095,1724027439855,-918.441793,0.0001567,2]
[335244096,1724027439864,-379.085514,0.0001567,2]
[335244098,1724027439874,-918.441793,0.0001567,2]
[335244100,1724027439884,-151.0,0.0001567,2]
[335244102,1724027439893,-198.388061,0.0001567,2]
[335244103,1724027439902,-156.655626,0.0001567,2]
[335244104,1724027439912,-198.388061,0.0001567,2]
[335244105,1724027439922,-401.600999,0.0001567,2]
[335244106,1724027439932,-401.600999,0.0001567,2]
[335244107,1724027439941,-151.0,0.0001567,2]
[335244108,1724027439951,-527.922159,0.0001567,2]
[335244109,1724027439960,-527.922159,0.0001567,2]
[335244110,1724027439970,-151.0,0.0001567,2]
[335244111,1724027439979,-197.161065,0.0001567,2]
[335244112,1724027439989,-197.161065,0.0001567,2]
[335244113,1724027439999,-1020.080673,0.0001567,2]
[335244114,1724027440009,-582.77032,0.0001567,2]
[335244115,1724027440018,-1020.080673,0.0001567,2]
[335244116,1724027440028,-151.0,0.0001567,2]
[335244117,1724027440040,-151.0,0.0001567,2]
[335244118,1724027440050,-151.0,0.0001567,2]
[335244119,1724027440060,-464.391783,0.0001567,2]
[335244120,1724027440070,-464.391783,0.0001567,2]
[335244121,1724027440079,-151.0,0.0001567,2]
[335244123,1724027440089,-151.0,0.0001567,2]
[335244125,1724027440098,-151.0,0.0001567,2]
[335244127,1724027440108,-151.0,0.0001567,2]
[335244129,1724027440118,-151.0,0.0001567,2]
[335244131,1724027440137,-416.313771,0.0001567,2]
[335244133,1724027440146,-1544.478139,0.0001567,2]
[335244134,1724027440156,-1544.478139,0.0001567,2]
[335244135,1724027440166,-416.313771,0.0001567,2]
[335244136,1724027440176,-1544.478139,0.0001567,2]
[335244137,1724027440188,-1544.478139,0.0001567,2]
[335244138,1724027440199,-151.0,0.0001567,2]
[335244140,1724027440210,-151.0,0.0001567,2]
[335244141,1724027440221,-246.652646,0.00015671,2]
[335244142,1724027440233,-286.865969,0.00015671,2]
[335244143,1724027440243,-168.845344,0.00015671,2]
[335244144,1724027440253,-150.112233,0.000157,2]
[335244145,1724027440262,-334.42391633,0.00015707,7]
[335244146,1724027440272,-379.085514,0.00015731,2]
[335244147,1724027440282,-918.441793,0.00015731,2]
[335244148,1724027440292,-379.085514,0.00015731,2]
[335244149,1724027440301,-918.441793,0.00015731,2]
[335244150,1724027440311,-151.0,0.00015731,2]
[335244151,1724027440322,-198.388061,0.00015731,2]
[335244152,1724027440332,-198.388061,0.00015731,2]
[335244153,1724027440343,-401.600999,0.00015731,2]
[335244154,1724027440354,-401.600999,0.00015731,2]
[335244155,1724027440364,-151.0,0.00015731,2]
[335244156,1724027440378,-527.922159,0.00015731,2]
[335244157,1724027440387,-527.922159,0.00015731,2]
[335244158,1724027440397,-151.0,0.00015731,2]
[335244159,1724027440406,-197.161065,0.00015731,2]
[335244160,1724027440416,-197.161065,0.00015731,2]
[335244161,1724027440425,-582.77032,0.00015731,2]
[335244162,1724027440435,-1020.080673,0.00015731,2]
[335244163,1724027440444,-582.77032,0.00015731,2]
[335244164,1724027440454,-1020.080673,0.00015731,2]
[335244165,1724027440464,-151.0,0.00015731,2]
[335244166,1724027440474,-151.0,0.00015731,2]
[335244167,1724027440483,-151.0,0.00015731,2]
[335244168,1724027440493,-464.391783,0.00015731,2]
[335244169,1724027440502,-464.391783,0.00015731,2]
[335244170,1724027440512,-151.0,0.00015731,2]
[335244171,1724027440521,-151.0,0.00015731,2]
[335244172,1724027440530,-151.0,0.00015731,2]
[335244173,1724027440541,-268.422765,0.00015731,2]
[335244174,1724027440551,-151.0,0.00015731,2]
[335244175,1724027440561,-416.313771,0.00015731,2]
[335244176,1724027440571,-416.313771,0.00015731,2]
[335244177,1724027440583,-151.0,0.00015741,2]
[335244178,1724027440593,-151.0,0.00015741,2]
[335244179,1724027440602,-251.049492,0.00015741,2]
[335244180,1724027440612,-151.0,0.00015741,2]
[335244181,1724027440626,-151.0,0.00015741,2]
[335244182,1724027440638,-151.0,0.00015741,2]
[335244183,1724027440647,-251.245295,0.00015741,2]
[335244184,1724027440656,-151.0,0.00015741,2]
[335244185,1724027440667,-151.0,0.00015741,2]
[335244186,1724027440677,-249.470732,0.00015741,2]
[335244187,1724027440687,-151.0,0.00015741,2]
[335244188,1724027440697,-151.0,0.00015741,2]
[335244189,1724027440708,-151.0,0.00015741,2]
[335244190,1724027440718,-483.142611,0.00015741,2]
[335244191,1724027440728,-328.230358,0.00015741,2]
[335244192,1724027440743,-328.230358,0.00015741,2]
[335244193,1724027440752,-1784.382667,0.00015741,2]
[335244194,1724027440763,-1784.382667,0.00015741,2]
[335244195,1724027440775,-151.682741,0.00015741,2]
[335244196,1724027440784,-923.831327,0.00015741,2]
[335244197,1724027440795,-923.831327,0.00015741,2]
[335244198,1724027440804,-151.0,0.00015741,2]
[335244199,1724027440814,-151.0,0.00015741,2]
[335244200,1724027440824,-151.0,0.00015741,2]
[335244201,1724027440833,-152.497139,0.0001575,2]
[335244202,1724027440843,-151.0,0.0001575,2]
[335244203,1724027440852,-151.0,0.0001575,2]
[335244204,1724027440862,-151.0,0.0001575,2]
[335244205,1724027440874,-151.0,0.0001575,2]
[335244206,1724027440886,-151.0,0.0001575,2]
[335244207,1724027440896,-151.0,0.0001575,2]
[335244208,1724027440907,-249.470732,0.0001575,2]
[335244209,1724027440917,-151.0,0.0001575,2]
[335244210,1724027440928,-151.0,0.0001575,2]
[335244211,1724027440939,-151.0,0.0001575,2]
[335244212,1724027440950,-483.142611,0.0001575,2]
[335244213,1724027440960,-328.230358,0.0001575,2]
[335244214,1724027440969,-328.230358,0.0001575,2]
[335244215,1724027440978,-1784.382667,0.0001575,2]
[335244216,1724027440987,-1784.382667,0.0001575,2]
[335244217,1724027440997,-923.831327,0.0001575,2]
[335244218,1724027441006,-923.831327,0.0001575,2]
[335244219,1724027441017,-151.0,0.0001575,2]
[335244220,1724027441027,-151.0,0.0001575,2]
[335244221,1724027441140,-151.0,0.0001575,2]
[335244222,1724027441150,-150.112233,0.000158,2]
[335244223,1724027441161,-246.652646,0.00015867,2]
[335244224,1724027441171,-286.865969,0.00015867,2]
[335244225,1724027441180,-7893.85785937,0.0001588,2]
[335244226,1724027441189,-160.0,0.00015903,4]
[335244227,1724027441199,-153.0,0.00015918,2]
[335244228,1724027441208,-153.0,0.00015918,2]
[335244229,1724027441217,-153.0,0.00015918,2]
[335244230,1724027441227,-153.0,0.00015918,2]
[335244231,1724027441236,-150.112233,0.00016,2]
[335244232,1724027441245,-154.786512,0.00016,2]
[335244233,1724027441255,-4653.02099019,0.00016,2]
[335244234,1724027441265,-1009.21986791,0.00016,2]
[335244235,1724027441274,-189855.96112849,0.00016,2]
[335244236,1724027441284,-1544.478139,0.00016,2]
[335244237,1724027441293,-1544.478139,0.00016,2]
[335244238,1724027441302,-151.0,0.00016,2]
[335244239,1724027441312,-1414.0,0.00016042,2]
[335244240,1724027441322,-8333.0,0.00016042,2]
[335244241,1724027441331,-285.225,0.00016042,2]
[335244242,1724027441340,-521.0,0.00016042,2]
[335244243,1724027441349,-246.652646,0.00016063,2]
[335244244,1724027441359,-286.865969,0.00016063,2]
[335244245,1724027441369,-150.112233,0.000161,2]
[335244246,1724027441381,-150.112233,0.000161,2]
[335244247,1724027441392,-155.0,0.0001615,2]
[335244248,1724027441402,-151.0,0.00016193,2]
[335244249,1724027441412,-162.594386,0.00016193,2]
[335244250,1724027441422,-151.0,0.00016193,2]
[335244251,1724027441431,-247.350528,0.00016193,2]
[335244252,1724027441440,-151.0,0.00016193,2]
[335244253,1724027441449,-246.652646,0.00016259,2]
[335244254,1724027441459,-286.865969,0.00016259,2]
[335244255,1724027441468,-500.0,0.00016262,2]
[335244256,1724027441478,-500.0,0.00016262,2]
[335244257,1724027441488,-150.112233,0.000163,2]
[335244258,1724027441498,-150.112233,0.000163,2]
[335244259,1724027441508,-150.112234,0.000163,2]
[335244260,1724027441518,-306.0,0.00016329,2]
[335244261,1724027441527,-207.5283979,0.00016329,2]
[335244262,1724027441538,-207.5283979,0.00016329,2]
[335244263,1724027441547,-207.5283979,0.00016329,2]
[335244264,1724027441559,-207.5283979,0.00016329,2]
[335244265,1724027441569,-207.5283979,0.00016329,2]
[335244266,1724027441579,-207.5283979,0.00016329,2]
[335244267,1724027441589,-207.5283979,0.00016329,2]
[335244268,1724027441599,-268.6054629,0.00016329,2]
[335244269,1724027441611,-207.5283979,0.00016329,2]
[335244270,1724027441624,-153.0,0.00016329,2]
[335244271,1724027441635,-207.5283979,0.00016329,2]
[335244272,1724027441645,-153.0,0.00016329,2]
[335244273,1724027441655,-207.5283979,0.00016329,2]
[335244274,1724027441664,-153.0,0.00016329,2]
[335244275,1724027441673,-151.0,0.00016329,2]
[335244276,1724027441682,-197.161065,0.00016329,2]
[335244277,1724027441691,-197.161065,0.00016329,2]
[335244278,1724027441701,-289.104621,0.00016338,2]
[335244279,1724027441710,-151.0,0.00016338,2]
[335244280,1724027441720,-151.0,0.00016338,2]
[335244281,1724027441732,-151.0,0.00016338,2]
[335244282,1724027441745,-151.0,0.00016338,2]
[335244283,1724027441757,-151.0,0.00016338,2]
[335244284,1724027441767,-151.0,0.00016338,2]
[335244285,1724027441778,-151.0,0.00016338,2]
[335244286,1724027441788,-249.470732,0.00016338,2]
[335244287,1724027441797,-151.0,0.00016338,2]
[335244288,1724027441807,-151.0,0.00016338,2]
[335244289,1724027441818,-151.0,0.00016338,2]
[335244290,1724027441827,-483.142611,0.00016338,2]
[335244291,1724027441836,-328.230358,0.00016338,2]
[335244292,1724027441847,-328.230358,0.00016338,2]
[335244293,1724027441856,-1784.382667,0.00016338,2]
[335244294,1724027441866,-1784.382667,0.00016338,2]
[335244295,1724027441878,-379.085514,0.00016338,2]
[335244296,1724027441888,-918.441793,0.00016338,2]
[335244297,1724027441898,-379.085514,0.00016338,2]
[335244298,1724027441910,-918.441793,0.00016338,2]
[335244299,1724027441920,-151.0,0.00016338,2]
[335244300,1724027441931,-198.388061,0.00016338,2]
[335244301,1724027441941,-198.388061,0.00016338,2]
[335244302,1724027441951,-923.831327,0.00016338,2]
[335244303,1724027441960,-923.831327,0.00016338,2]
[335244304,1724027441970,-401.600999,0.00016338,2]
[335244305,1724027441980,-151.0,0.00016338,2]
[335244306,1724027441991,-401.600999,0.00016338,2]
[335244307,1724027442004,-151.847396,0.00016338,2]
[335244308,1724027442013,-151.0,0.00016338,2]
[335244309,1724027442023,-211.739216,0.00016338,2]
[335244310,1724027442034,-527.922159,0.00016338,2]
[335244311,1724027442044,-527.922159,0.00016338,2]
[335244312,1724027442054,-582.77032,0.00016338,2]
[335244313,1724027442065,-1020.080673,0.00016338,2]
[335244314,1724027442076,-582.77032,0.00016338,2]
[335244315,1724027442087,-1020.080673,0.00016338,2]
[335244316,1724027442097,-151.0,0.00016338,2]
[335244317,1724027442107,-151.0,0.00016338,2]
[335244318,1724027442122,-151.0,0.00016338,2]
[335244319,1724027442131,-464.391783,0.00016338,2]
[335244320,1724027442140,-464.391783,0.00016338,2]
[335244321,1724027442149,-151.0,0.00016338,2]
[335244322,1724027442159,-151.0,0.00016338,2]
[335244323,1724027442169,-176.997082,0.00016338,2]
[335244324,1724027442179,-151.0,0.00016338,2]
[335244325,1724027442189,-416.313771,0.00016338,2]
[335244326,1724027442199,-1544.478139,0.00016338,2]
[335244327,1724027442210,-416.313771,0.00016338,2]
[335244328,1724027442220,-1544.478139,0.00016338,2]
[335244329,1724027442231,-151.0,0.00016338,2]
[335244330,1724027442242,-40000.0,0.00016338,2]
[335244331,1724027442251,-242.9856,0.00016356,2]
[335244332,1724027442260,-3000.0,0.000164,2]
[335244333,1724027442270,-151.0,0.000164,2]
[335244334,1724027442279,-197.161065,0.000164,2]
[335244335,1724027442289,-197.161065,0.000164,2]
[335244336,1724027442298,-167.921841,0.00016406,2]
[335244337,1724027442308,-151.0,0.0001641,2]
[335244338,1724027442317,-151.0,0.0001641,2]
[335244339,1724027442327,-151.0,0.0001641,2]
[335244340,1724027442340,-3000.0,0.0001641,2]
[335244341,1724027442351,-3000.0,0.0001642,2]
[335244342,1724027442361,-3000.0,0.0001643,2]
[335244343,1724027442372,-582.77032,0.0001643,2]
[335244344,1724027442383,-1020.080673,0.0001643,2]
[335244345,1724027442393,-582.77032,0.0001643,2]
[335244346,1724027442403,-1020.080673,0.0001643,2]
[335244347,1724027442413,-152.794696,0.0001643,2]
[335244348,1724027442422,-151.0,0.0001643,2]
[335244349,1724027442432,-151.0,0.0001643,2]
[335244350,1724027442442,-464.391783,0.0001643,2]
[335244351,1724027442451,-464.391783,0.0001643,2]
[335244352,1724027442461,-157.85977464,0.00016437,2]
[335244353,1724027442471,-4630.76121891,0.00016437,2]
[335244354,1724027442480,-151.0,0.00016437,2]
[335244356,1724027442489,-151.0,0.00016437,2]
[335244358,1724027442499,-151.0,0.00016437,2]
[335244360,1724027442508,-416.313771,0.00016437,2]
[335244361,1724027442519,-416.313771,0.00016437,2]
[335244362,1724027442528,-502.39336279,0.00016438,2]
[335244363,1724027442540,-736.4,0.00016438,2]
[335244364,1724027442550,-466.80532712,0.00016438,2]
[335244365,1724027442561,-500.0,0.00016438,2]
[335244366,1724027442571,-500.0,0.00016438,2]
[335244367,1724027442580,-554.6380685,0.00016438,2]
[335244368,1724027442589,-500.0,0.00016438,2]
[335244369,1724027442599,-500.0,0.00016438,2]
[335244370,1724027442609,-500.0,0.00016438,2]
[335244371,1724027442618,-500.0,0.00016438,2]
[335244372,1724027442634,-309.0108856,0.00016438,2]
[335244373,1724027442643,-500.0,0.00016438,2]
[335244374,1724027442656,-504.08150754,0.00016438,2]
[335244375,1724027442665,-503.26337526,0.00016438,2]
[335244376,1724027442674,-507.80802781,0.00016438,2]
[335244377,1724027442683,-502.75146287,0.00016438,2]
[335244378,1724027442693,-500.0,0.00016438,2]
[335244379,1724027442703,-500.0,0.00016438,2]
[335244380,1724027442713,-500.0,0.00016438,2]
[335244381,1724027442723,-245.65795402,0.00016438,2]
[335244382,1724027442734,-500.0,0.00016438,2]
[335244383,1724027442747,-571.39,0.00016438,2]
[335244384,1724027442756,-500.0,0.00016438,2]
[335244385,1724027442766,-500.0,0.00016438,2]
[335244386,1724027442779,-500.0,0.00016438,2]
[335244387,1724027442788,-500.0,0.00016438,2]
[335244388,1724027442800,-505.3599567,0.00016438,2]
[335244389,1724027442811,-500.0,0.00016438,2]
[335244390,1724027442823,-500.0,0.00016438,2]
[335244391,1724027442832,-500.0,0.00016438,2]
[335244392,1724027442842,-500.0,0.00016438,2]
[335244393,1724027442851,-500.0,0.00016438,2]
[335244394,1724027442861,-500.0,0.00016438,2]
[335244395,1724027442873,-612.12252098,0.00016438,2]
[335244396,1724027442988,-150.0,0.00016438,2]
[335244397,1724027442998,-500.0,0.00016438,2]
[335244398,1724027443007,-500.0,0.00016438,2]
[335244399,1724027443017,-151.0,0.00016438,2]
[335244400,1724027443027,-152.726954,0.00016438,2]
[335244401,1724027443036,-417.33335301,0.00016438,2]
[335244402,1724027443046,-500.0,0.00016438,2]
[335244403,1724027443055,-501.6854391,0.00016438,2]
[335244404,1724027443066,-500.0,0.00016438,2]
[335244405,1724027443077,-500.0,0.00016438,2]
[335244406,1724027443087,-500.0,0.00016438,2]
[335244407,1724027443098,-500.0,0.00016438,2]
[335244408,1724027443107,-500.0,0.00016438,2]
[335244409,1724027443117,-500.0,0.00016438,2]
[335244410,1724027443131,-500.0,0.00016438,2]
[335244411,1724027443141,-252.00719866,0.00016438,2]
[335244412,1724027443150,-649.0,0.00016438,2]
[335244413,1724027443158,-692.09,0.00016438,2]
[335244414,1724027443167,-500.0,0.00016438,2]
[335244415,1724027443177,-500.0,0.00016438,2]
[335244416,1724027443186,-500.0,0.00016438,2]
[335244417,1724027443195,-329.41772764,0.00016438,2]
[335244418,1724027443207,-611.83015375,0.00016438,2]
[335244419,1724027443217,-500.0,0.00016438,2]
[335244420,1724027443229,-500.0,0.00016438,2]
[335244421,1724027443239,-500.0,0.00016438,2]
[335244422,1724027443248,-500.0,0.00016438,2]
[335244423,1724027443258,-500.0,0.00016438,2]
[335244424,1724027443267,-500.0,0.00016438,2]
[335244425,1724027443276,-500.0,0.00016438,2]
[335244426,1724027443286,-500.0,0.00016438,2]
[335244427,1724027443295,-200.0,0.00016438,2]
[335244428,1724027443304,-500.0,0.00016438,2]
[335244429,1724027443313,-500.0,0.00016438,2]
[335244430,1724027443323,-500.0,0.00016438,2]
[335244431,1724027443332,-500.0,0.00016438,2]
[335244432,1724027443341,-500.0,0.00016438,2]
[335244433,1724027443351,-500.0,0.00016438,2]
[335244434,1724027443361,-500.0,0.00016438,2]
[335244435,1724027443370,-500.0,0.00016438,2]
[335244436,1724027443385,-500.0,0.00016438,2]
[335244437,1724027443394,-502.85908508,0.00016438,2]
[335244438,1724027443404,-500.0,0.00016438,2]
[335244439,1724027443413,-500.0,0.00016438,2]
[335244440,1724027443422,-697.63,0.00016438,2]
[335244441,1724027443432,-500.0,0.00016438,2]
[335244442,1724027443442,-500.0,0.00016438,2]
[335244443,1724027443451,-500.0,0.00016438,2]
[335244444,1724027443461,-418.11879524,0.00016438,2]
[335244445,1724027443470,-500.0,0.00016438,2]
[335244446,1724027443479,-512.40516125,0.00016438,2]
[335244447,1724027443488,-506.77248503,0.00016438,2]
[335244448,1724027443499,-1303.51,0.00016438,2]
[335244449,1724027443509,-500.0,0.00016438,2]
[335244450,1724027443520,-500.0,0.00016438,2]
[335244451,1724027443529,-510.71652448,0.00016438,2]
[335244452,1724027443538,-500.0,0.00016438,2]
[335244453,1724027443548,-500.0,0.00016438,2]
[335244454,1724027443557,-506.40033661,0.00016438,2]
[335244455,1724027443566,-500.0,0.00016438,2]
[335244456,1724027443575,-682.7,0.00016438,2]
[335244457,1724027443585,-500.0,0.00016438,2]
[335244458,1724027443594,-500.0,0.00016438,2]
[335244459,1724027443604,-500.0,0.00016438,2]
[335244460,1724027443615,-500.0,0.00016438,2]
[335244461,1724027443629,-500.0,0.00016438,2]
[335244462,1724027443639,-500.0,0.00016438,2]
[335244463,1724027443648,-500.0,0.00016438,2]
[335244464,1724027443658,-500.0,0.00016438,2]
[335244465,1724027443667,-519.3786446,0.00016438,2]
[335244466,1724027443676,-500.0,0.00016438,2]
[335244467,1724027443686,-500.0,0.00016438,2]
[335244468,1724027443695,-500.0,0.00016438,2]
[335244469,1724027443705,-500.0,0.00016438,2]
[335244470,1724027443714,-501.12137864,0.00016438,2]
[335244471,1724027443723,-500.0,0.00016438,2]
[335244472,1724027443733,-500.0,0.00016438,2]
[335244473,1724027443745,-500.0,0.00016438,2]
[335244474,1724027443754,-500.0,0.00016438,2]
[335244475,1724027443769,-500.0,0.00016438,2]
[335244476,1724027443789,-500.0,0.00016438,2]
[335244477,1724027443805,-510.97364611,0.00016438,2]
[335244478,1724027443823,-500.0,0.00016438,2]
[335244479,1724027443842,-638.39,0.00016438,2]
[335244480,1724027443862,-500.0,0.00016438,2]
[335244481,1724027443881,-500.0,0.00016438,2]
[335244482,1724027443895,-500.0,0.00016438,2]
[335244483,1724027443912,-500.81633259,0.00016438,2]
[335244484,1724027443926,-500.0,0.00016438,2]
[335244485,1724027443940,-500.0,0.00016438,2]
[335244486,1724027443956,-500.0,0.00016438,2]
[335244487,1724027443973,-500.0,0.00016438,2]
[335244488,1724027443990,-500.0,0.00016438,2]
[335244489,1724027444004,-500.0,0.00016438,2]
[335244490,1724027444015,-500.0,0.00016438,2]
[335244491,1724027444031,-574.24,0.00016438,2]
[335244492,1724027444046,-500.0,0.00016438,2]
[335244493,1724027444062,-500.0,0.00016438,2]
[335244494,1724027444078,-500.0,0.00016438,2]
[335244495,1724027444091,-500.0,0.00016438,2]
[335244496,1724027444105,-503.19594722,0.00016438,2]
[335244497,1724027444119,-500.0,0.00016438,2]
[335244498,1724027444139,-576.4,0.00016438,2]
[335244499,1724027444154,-500.0,0.00016438,2]
[335244500,1724027444167,-500.0,0.00016438,2]
[335244502,1724027444180,-292.00357478,0.00016438,2]
[335244504,1724027444194,-500.0,0.00016438,2]
[335244506,1724027444208,-558.25,0.00016438,2]
[335244507,1724027444223,-500.0,0.00016438,2]
[335244508,1724027444237,-387.67011758,0.00016438,2]
[335244509,1724027444251,-500.0,0.00016438,2]
[335244510,1724027444263,-500.0,0.00016438,2]
[335244511,1724027444278,-500.0,0.00016438,2]
[335244512,1724027444292,-500.0,0.00016438,2]
[335244513,1724027444307,-500.0,0.00016438,2]
[335244514,1724027444320,-500.0,0.00016438,2]
[335244515,1724027444334,-740.77,0.00016438,2]
[335244516,1724027444347,-500.0,0.00016438,2]
[335244517,1724027444359,-500.0,0.00016438,2]
[335244518,1724027444377,-500.0,0.00016438,2]
[335244519,1724027444391,-500.0,0.00016438,2]
[335244520,1724027444404,-511.45949116,0.00016438,2]
[335244521,1724027444418,-505.04959204,0.00016438,2]
[335244522,1724027444432,-379.23394776,0.00016438,2]
[335244523,1724027444445,-151.0,0.00016438,2]
[335244524,1724027444458,-151.0,0.00016438,2]
[335244525,1724027444471,-151.0,0.00016438,2]
[335244526,1724027444485,-500.0,0.00016438,2]
[335244527,1724027444498,-151.0,0.00016438,2]
[335244528,1724027444511,-151.0,0.00016438,2]
[335244529,1724027444524,-500.0,0.00016438,2]
[335244530,1724027444536,-151.0,0.00016438,2]
[335244531,1724027444549,-151.0,0.00016438,2]
[335244532,1724027444563,-151.0,0.00016438,2]
[335244533,1724027444576,-500.0,0.00016438,2]
[335244534,1724027444590,-500.0,0.00016438,2]
[335244535,1724027444603,-500.0,0.00016438,2]
[335244536,1724027444616,-500.0,0.00016438,2]
[335244537,1724027444631,-500.0,0.00016438,2]
[335244538,1724027444645,-151.0,0.00016438,2]
[335244539,1724027444657,-151.0,0.00016438,2]
[335244540,1724027444670,-151.93627,0.00016438,2]
[335244541,1724027444684,-500.0,0.00016438,2]
[335244542,1724027444698,-7.54264769,0.00016438,2]
[335244544,1724027445572,-492.45735231,0.00016438,2]
[335244545,1724027445582,-363.00851937,0.00016438,2]
[335244546,1724027445592,-500.0,0.00016438,2]
[335244547,1724027445602,-500.0,0.00016438,2]
[335244548,1724027445613,-500.0,0.00016438,2]
[335244549,1724027445624,-500.0,0.00016438,2]
[335244550,1724027445633,-176.54166982,0.00016438,2]
[335244551,1724027445643,-500.0,0.00016438,2]
[335244552,1724027445652,-500.0,0.00016438,2]
[335244553,1724027445662,-495.78922425,0.00016438,2]
[335244554,1724027445671,-151.0,0.00016438,2]
[335244555,1724027445681,-500.0,0.00016438,2]
[335244556,1724027445690,-151.0,0.00016438,2]
[335244557,1724027445699,-151.0,0.00016438,2]
[335244558,1724027445709,-151.0,0.00016438,2]
[335244559,1724027445718,-151.0,0.00016438,2]
[335244560,1724027445728,-513.78946018,0.00016438,2]
[335244561,1724027445741,-151.0,0.00016438,2]
[335244562,1724027445751,-155.833677,0.00016438,2]
[335244563,1724027445760,-500.0,0.00016438,2]
[335244565,1724027445770,-500.0,0.00016438,2]
[335244566,1724027445782,-500.0,0.00016438,2]
[335244567,1724027445792,-503.20256977,0.00016438,2]